[Event "Titled Tuesday Blitz November 01 Late 2022"]
[White "Bambino Filho, Antonio Carlos"]
[Black "Ali Abdullahi, Farah"]
[WhiteFideId "2113163"]
[BlackFideId "16100212"]
[WhiteElo "2424"]
[BlackElo "2294"]
[Result "1-0"]
[Round "03"]
[TimeControl "180+1"]
[Date "2022.11.02"]
[WhiteClock "0:00:24"]
[BlackClock "0:00:20"]

1. d4 {[%clk 0:02:35]}  e6 {[%clk 0:02:58]} 2. Nf3 {[%clk 0:02:02]}  b6 {[%clk 0:02:56]} 3. g3 {[%clk 0:02:00]}  Bb7 {[%clk 0:02:56]} 4. Bg2 {[%clk 0:02:01]}  Nf6 {[%clk 0:02:56]} 5. O-O {[%clk 0:02:02]}  Be7 {[%clk 0:02:56]} 6. c4 {[%clk 0:02:02]}  O-O {[%clk 0:02:56]} 7. Nc3 {[%clk 0:02:03]}  Bb4 {[%clk 0:02:56]} 8. Na4 {[%clk 0:02:02]}  Be7 {[%clk 0:02:53]} 9. Nc3 {[%clk 0:01:47]}  Bb4 {[%clk 0:02:47]} 10. Na4 {[%clk 0:01:47]}  a6 {[%clk 0:02:33]} 11. a3 {[%clk 0:01:45]}  Be7 {[%clk 0:02:34]} 12. Nc3 {[%clk 0:01:46]}  d6 {[%clk 0:02:32]} 13. Qc2 {[%clk 0:01:46]}  Nbd7 {[%clk 0:02:32]} 14. e4 {[%clk 0:01:46]}  h6 {[%clk 0:02:32]} 15. h3 {[%clk 0:01:46]}  e5 {[%clk 0:02:31]} 16. d5 {[%clk 0:01:31]}  a5 {[%clk 0:02:30]} 17. Be3 {[%clk 0:01:29]}  Nc5 {[%clk 0:02:22]} 18. b4 {[%clk 0:01:28]}  Ncd7 {[%clk 0:02:14]} 19. Ne1 {[%clk 0:01:25]}  Ne8 {[%clk 0:02:12]} 20. Nd3 {[%clk 0:01:25]}  Nef6 {[%clk 0:02:03]} 21. c5 {[%clk 0:01:19]}  bxc5 {[%clk 0:02:02]} 22. bxc5 {[%clk 0:01:20]}  Ba6 {[%clk 0:02:00]} 23. Rfd1 {[%clk 0:01:14]}  Bxd3 {[%clk 0:01:58]} 24. Qxd3 {[%clk 0:01:12]}  Nxc5 {[%clk 0:01:51]} 25. Bxc5 {[%clk 0:01:11]}  dxc5 {[%clk 0:01:51]} 26. Na4 {[%clk 0:01:12]}  Bd6 {[%clk 0:01:50]} 27. Rdc1 {[%clk 0:01:12]}  Nd7 {[%clk 0:01:50]} 28. h4 {[%clk 0:01:06]}  Qf6 {[%clk 0:01:44]} 29. Bh3 {[%clk 0:01:05]}  Nb6 {[%clk 0:01:38]} 30. Nxc5 {[%clk 0:01:04]}  g5 {[%clk 0:01:29]} 31. hxg5 {[%clk 0:01:03]}  hxg5 {[%clk 0:01:27]} 32. Bf5 {[%clk 0:01:03]}  Kg7 {[%clk 0:01:27]} 33. Kg2 {[%clk 0:01:04]}  Nc8 {[%clk 0:01:21]} 34. Nd7 {[%clk 0:01:00]}  Qe7 {[%clk 0:01:17]} 35. Nxf8 {[%clk 0:01:00]}  Qxf8 {[%clk 0:01:18]} 36. Rh1 {[%clk 0:01:00]}  Qg8 {[%clk 0:01:14]} 37. Qf3 {[%clk 0:01:00]}  Ne7 {[%clk 0:01:13]} 38. Rh5 {[%clk 0:00:58]}  Kf8 {[%clk 0:01:11]} 39. Rah1 {[%clk 0:00:57]}  Qg7 {[%clk 0:01:06]} 40. Rh7 {[%clk 0:00:52]}  Qf6 {[%clk 0:01:05]} 41. a4 {[%clk 0:00:38]}  Ng8 {[%clk 0:01:01]} 42. Rb1 {[%clk 0:00:31]}  Nh6 {[%clk 0:00:53]} 43. Bg4 {[%clk 0:00:28]}  Nxg4 {[%clk 0:00:44]} 44. Qxg4 {[%clk 0:00:25]}  Ke7 {[%clk 0:00:39]} 45. Rb3 {[%clk 0:00:26]}  Rg8 {[%clk 0:00:37]} 46. Rf3 {[%clk 0:00:26]}  Qg6 {[%clk 0:00:37]} 47. Rfxf7+ {[%clk 0:00:26]}  Qxf7 {[%clk 0:00:36]} 48. Rxf7+ {[%clk 0:00:26]}  Kxf7 {[%clk 0:00:37]} 49. Qe6+ {[%clk 0:00:27]}  Kf8 {[%clk 0:00:37]} 50. Kf3 {[%clk 0:00:27]}  Rg7 {[%clk 0:00:37]} 51. Kg4 {[%clk 0:00:28]}  Rf7 {[%clk 0:00:38]} 52. f3 {[%clk 0:00:28]}  Rg7 {[%clk 0:00:36]} 53. Qc8+ {[%clk 0:00:27]}  Ke7 {[%clk 0:00:34]} 54. Qa6 {[%clk 0:00:21]}  Bb4 {[%clk 0:00:34]} 55. Qe6+ {[%clk 0:00:21]}  Kf8 {[%clk 0:00:33]} 56. Qxe5 {[%clk 0:00:22]}  Bd6 {[%clk 0:00:30]} 57. Qf5+ {[%clk 0:00:21]}  Ke8 {[%clk 0:00:29]} 58. Qc8+ {[%clk 0:00:22]}  Ke7 {[%clk 0:00:27]} 59. e5 {[%clk 0:00:21]}  Bb4 {[%clk 0:00:23]} 60. Qe6+ {[%clk 0:00:21]}  Kd8 {[%clk 0:00:20]} 61. d6 {[%clk 0:00:22]}  cxd6 {[%clk 0:00:20]} 62. exd6 {[%clk 0:00:23]}  Rd7 {[%clk 0:00:20]} 63. Qg8# {[%clk 0:00:24]} 1-0


[Site "https://www.chess.com"]

[Event "Titled Tuesday Blitz November 01 Late 2022"]
[White "Baskakov, Egor"]
[Black "Erigaisi Arjun"]
[WhiteFideId "24197866"]
[BlackFideId "35009192"]
[WhiteElo "2836"]
[BlackElo "3152"]
[Result "1-0"]
[Round "03"]
[TimeControl "180+1"]
[Date "2022.11.01"]
[WhiteClock "0:00:30"]
[BlackClock "0:00:17"]

1. e4 {[%clk 0:03:00]}  c5 {[%clk 0:02:58]} 2. Nf3 {[%clk 0:03:00]}  g6 {[%clk 0:02:58]} 3. d4 {[%clk 0:03:00]}  cxd4 {[%clk 0:02:59]} 4. Nxd4 {[%clk 0:03:01]}  Bg7 {[%clk 0:02:59]} 5. g3 {[%clk 0:02:59]}  Nf6 {[%clk 0:02:58]} 6. Bg2 {[%clk 0:02:58]}  O-O {[%clk 0:02:58]} 7. Nc3 {[%clk 0:02:56]}  d6 {[%clk 0:02:57]} 8. h3 {[%clk 0:02:56]}  Nc6 {[%clk 0:02:57]} 9. Nde2 {[%clk 0:02:56]}  Bd7 {[%clk 0:02:50]} 10. O-O {[%clk 0:02:54]}  Rc8 {[%clk 0:02:46]} 11. a4 {[%clk 0:02:54]}  a6 {[%clk 0:02:43]} 12. Nd5 {[%clk 0:02:49]}  Nxd5 {[%clk 0:02:36]} 13. exd5 {[%clk 0:02:50]}  Ne5 {[%clk 0:02:37]} 14. Ra2 {[%clk 0:02:50]}  b5 {[%clk 0:02:35]} 15. axb5 {[%clk 0:02:51]}  axb5 {[%clk 0:02:32]} 16. b3 {[%clk 0:02:51]}  Be8 {[%clk 0:02:28]} 17. Be3 {[%clk 0:02:44]}  Nd7 {[%clk 0:02:21]} 18. Nd4 {[%clk 0:02:39]}  Nf6 {[%clk 0:02:20]} 19. Qd3 {[%clk 0:02:28]}  b4 {[%clk 0:02:14]} 20. Qd2 {[%clk 0:02:21]}  Rc3 {[%clk 0:02:07]} 21. Ra7 {[%clk 0:02:20]}  Bd7 {[%clk 0:02:05]} 22. Rb7 {[%clk 0:02:05]}  Qa5 {[%clk 0:01:48]} 23. Nc6 {[%clk 0:02:05]}  Bxc6 {[%clk 0:01:46]} 24. dxc6 {[%clk 0:02:06]}  Qf5 {[%clk 0:01:26]} 25. Rxe7 {[%clk 0:01:57]}  Qxc2 {[%clk 0:01:26]} 26. Qxd6 {[%clk 0:01:47]}  Qxb3 {[%clk 0:01:13]} 27. Rb7 {[%clk 0:01:46]}  Rxe3 {[%clk 0:00:58]} 28. fxe3 {[%clk 0:01:46]}  Qxe3+ {[%clk 0:00:58]} 29. Kh2 {[%clk 0:01:42]}  Nh5 {[%clk 0:00:58]} 30. Rbxf7 {[%clk 0:01:18]}  Rxf7 {[%clk 0:00:56]} 31. Rxf7 {[%clk 0:01:17]}  Nxg3 {[%clk 0:00:33]} 32. Re7 {[%clk 0:00:35]}  Qc1 {[%clk 0:00:17]} 33. Bd5+ {[%clk 0:00:30]} 1-0


[Site "https://www.chess.com"]

[Event "Titled Tuesday Blitz November 01 Late 2022"]
[White "Bilan, Danila"]
[Black "Vifleemskaia, Svetlana"]
[WhiteFideId "24161918"]
[BlackFideId "4129490"]
[WhiteElo "2203"]
[BlackElo "1929"]
[Result "1-0"]
[Round "03"]
[TimeControl "180+1"]
[Date "2022.11.02"]
[WhiteClock "0:00:12"]
[BlackClock "0:00:07"]

1. d3 {[%clk 0:03:00]}  e5 {[%clk 0:02:56]} 2. Nf3 {[%clk 0:03:00]}  Nc6 {[%clk 0:02:55]} 3. g3 {[%clk 0:03:00]}  f5 {[%clk 0:02:55]} 4. Bg2 {[%clk 0:03:01]}  Nf6 {[%clk 0:02:55]} 5. O-O {[%clk 0:03:01]}  d5 {[%clk 0:02:55]} 6. c4 {[%clk 0:02:58]}  d4 {[%clk 0:02:54]} 7. Bd2 {[%clk 0:02:47]}  a5 {[%clk 0:02:53]} 8. a3 {[%clk 0:02:47]}  Bc5 {[%clk 0:02:37]} 9. Bg5 {[%clk 0:02:45]}  O-O {[%clk 0:02:36]} 10. Nbd2 {[%clk 0:02:44]}  h6 {[%clk 0:02:28]} 11. Bxf6 {[%clk 0:02:44]}  Qxf6 {[%clk 0:02:27]} 12. b4 {[%clk 0:02:29]}  axb4 {[%clk 0:02:25]} 13. axb4 {[%clk 0:02:30]}  Rxa1 {[%clk 0:02:23]} 14. Qxa1 {[%clk 0:02:30]}  Bxb4 {[%clk 0:02:20]} 15. Nb3 {[%clk 0:02:30]}  Bc3 {[%clk 0:02:19]} 16. Qa2 {[%clk 0:02:23]}  e4 {[%clk 0:02:12]} 17. Nfd2 {[%clk 0:02:21]}  e3 {[%clk 0:02:07]} 18. fxe3 {[%clk 0:01:59]}  dxe3 {[%clk 0:02:08]} 19. Nf3 {[%clk 0:01:52]}  Qe6 {[%clk 0:02:01]} 20. Qc2 {[%clk 0:01:39]}  Qf6 {[%clk 0:01:50]} 21. Qc1 {[%clk 0:01:08]}  Re8 {[%clk 0:01:44]} 22. Ne1 {[%clk 0:01:04]}  Nd4 {[%clk 0:01:28]} 23. Nxd4 {[%clk 0:00:59]}  Bxd4 {[%clk 0:01:20]} 24. Nc2 {[%clk 0:00:59]}  c5 {[%clk 0:01:14]} 25. Qb1 {[%clk 0:00:55]}  Qa6 {[%clk 0:00:48]} 26. Nxd4 {[%clk 0:00:48]}  cxd4 {[%clk 0:00:49]} 27. Qb2 {[%clk 0:00:48]}  Rd8 {[%clk 0:00:47]} 28. Rf4 {[%clk 0:00:41]}  Qa7 {[%clk 0:00:37]} 29. Bd5+ {[%clk 0:00:33]}  Kh8 {[%clk 0:00:33]} 30. Qxd4 {[%clk 0:00:25]}  Qa2 {[%clk 0:00:23]} 31. Qxe3 {[%clk 0:00:21]}  Bd7 {[%clk 0:00:22]} 32. Qe7 {[%clk 0:00:18]}  Re8 {[%clk 0:00:14]} 33. Qxd7 {[%clk 0:00:17]}  Qxe2 {[%clk 0:00:14]} 34. Qxf5 {[%clk 0:00:14]}  Qd1+ {[%clk 0:00:07]} 35. Rf1 {[%clk 0:00:12]} 1-0


[Site "https://www.chess.com"]

[Event "Titled Tuesday Blitz November 01 Late 2022"]
[White "Bluebaum, Matthias"]
[Black "Popilski, Gil"]
[WhiteFideId "24651516"]
[BlackFideId "2809060"]
[WhiteElo "2633"]
[BlackElo "2537"]
[Result "1-0"]
[Round "03"]
[TimeControl "180+1"]
[Date "2022.11.02"]
[WhiteClock "0:00:18"]
[BlackClock "0:00:03"]

1. d4 {[%clk 0:03:00]}  Nf6 {[%clk 0:02:59]} 2. c4 {[%clk 0:03:01]}  g6 {[%clk 0:02:59]} 3. Nc3 {[%clk 0:03:01]}  d5 {[%clk 0:02:59]} 4. cxd5 {[%clk 0:03:02]}  Nxd5 {[%clk 0:02:58]} 5. e4 {[%clk 0:03:02]}  Nxc3 {[%clk 0:02:57]} 6. bxc3 {[%clk 0:03:03]}  Bg7 {[%clk 0:02:58]} 7. Nf3 {[%clk 0:03:04]}  c5 {[%clk 0:02:57]} 8. Bb5+ {[%clk 0:03:05]}  Bd7 {[%clk 0:02:53]} 9. Be2 {[%clk 0:03:05]}  O-O {[%clk 0:02:52]} 10. O-O {[%clk 0:03:05]}  Qa5 {[%clk 0:02:41]} 11. Bd2 {[%clk 0:03:04]}  Ba4 {[%clk 0:02:37]} 12. Qb1 {[%clk 0:03:02]}  Nc6 {[%clk 0:02:22]} 13. d5 {[%clk 0:02:43]}  Ne5 {[%clk 0:02:17]} 14. Nxe5 {[%clk 0:02:41]}  Bxe5 {[%clk 0:02:18]} 15. Qxb7 {[%clk 0:02:41]}  Rab8 {[%clk 0:02:01]} 16. Qxe7 {[%clk 0:02:39]}  Rfe8 {[%clk 0:01:59]} 17. Qh4 {[%clk 0:02:37]}  Rb2 {[%clk 0:01:56]} 18. Qg5 {[%clk 0:02:22]}  Rxd2 {[%clk 0:00:54]} 19. Qxd2 {[%clk 0:02:21]}  Bxc3 {[%clk 0:00:54]} 20. Qd3 {[%clk 0:02:09]}  Bxa1 {[%clk 0:00:47]} 21. Rxa1 {[%clk 0:02:10]}  Qb4 {[%clk 0:00:39]} 22. Bf3 {[%clk 0:01:55]}  Qb2 {[%clk 0:00:20]} 23. Re1 {[%clk 0:01:38]}  Qxa2 {[%clk 0:00:19]} 24. Qc3 {[%clk 0:01:39]}  c4 {[%clk 0:00:17]} 25. e5 {[%clk 0:01:30]}  Qb3 {[%clk 0:00:16]} 26. Qd4 {[%clk 0:01:31]}  c3 {[%clk 0:00:13]} 27. e6 {[%clk 0:01:30]}  c2 {[%clk 0:00:11]} 28. h4 {[%clk 0:01:17]}  Qa3 {[%clk 0:00:08]} 29. Qf4 {[%clk 0:01:01]}  fxe6 {[%clk 0:00:08]} 30. dxe6 {[%clk 0:01:02]}  Rf8 {[%clk 0:00:08]} 31. Qg5 {[%clk 0:00:56]}  Rc8 {[%clk 0:00:07]} 32. Rc1 {[%clk 0:00:35]}  Qd6 {[%clk 0:00:07]} 33. e7 {[%clk 0:00:34]}  Re8 {[%clk 0:00:07]} 34. Qg4 {[%clk 0:00:30]}  Bb3 {[%clk 0:00:05]} 35. Be4 {[%clk 0:00:23]}  Rxe7 {[%clk 0:00:05]} 36. Bxc2 {[%clk 0:00:23]}  Bxc2 {[%clk 0:00:04]} 37. Qc8+ {[%clk 0:00:23]}  Kg7 {[%clk 0:00:03]} 38. Qxc2 {[%clk 0:00:24]}  Qf4 {[%clk 0:00:03]} 39. g3 {[%clk 0:00:24]}  Qf6 {[%clk 0:00:03]} 40. Rd1 {[%clk 0:00:22]}  Rf7 {[%clk 0:00:04]} 41. Qa2 {[%clk 0:00:22]}  h5 {[%clk 0:00:04]} 42. Rd5 {[%clk 0:00:22]}  a6 {[%clk 0:00:04]} 43. Ra5 {[%clk 0:00:22]}  Kh7 {[%clk 0:00:04]} 44. Rxa6 {[%clk 0:00:22]}  Qf3 {[%clk 0:00:05]} 45. Qc2 {[%clk 0:00:21]}  Rg7 {[%clk 0:00:04]} 46. Rc6 {[%clk 0:00:19]}  Qg4 {[%clk 0:00:04]} 47. Rc5 {[%clk 0:00:19]}  Rf7 {[%clk 0:00:04]} 48. Rg5 {[%clk 0:00:18]}  Qe6 {[%clk 0:00:04]} 49. Rxh5+ {[%clk 0:00:19]}  Kg7 {[%clk 0:00:04]} 50. Rg5 {[%clk 0:00:19]}  Rf6 {[%clk 0:00:04]} 51. Rc5 {[%clk 0:00:17]}  Qe1+ {[%clk 0:00:04]} 52. Kg2 {[%clk 0:00:17]}  Qe7 {[%clk 0:00:04]} 53. Rc7 {[%clk 0:00:18]}  Rxf2+ {[%clk 0:00:03]} 54. Kxf2 {[%clk 0:00:18]} 1-0


[Site "https://www.chess.com"]

[Event "Titled Tuesday Blitz November 01 Late 2022"]
[White "Bogaudinov, Rushan"]
[Black "Bazzano, Sebastian"]
[WhiteFideId "4129288"]
[BlackFideId "104566"]
[WhiteElo "1945"]
[BlackElo "2236"]
[Result "1-0"]
[Round "03"]
[TimeControl "180+1"]
[Date "2022.11.02"]
[WhiteClock "0:01:02"]
[BlackClock "0:00:11"]

1. d4 {[%clk 0:02:42]}  Nf6 {[%clk 0:02:59]} 2. c4 {[%clk 0:02:42]}  c5 {[%clk 0:02:58]} 3. d5 {[%clk 0:02:42]}  e6 {[%clk 0:02:58]} 4. Nc3 {[%clk 0:02:42]}  exd5 {[%clk 0:02:58]} 5. cxd5 {[%clk 0:02:43]}  d6 {[%clk 0:02:58]} 6. e4 {[%clk 0:02:43]}  g6 {[%clk 0:02:59]} 7. Nf3 {[%clk 0:02:43]}  Bg7 {[%clk 0:02:59]} 8. Bf4 {[%clk 0:02:42]}  a6 {[%clk 0:02:57]} 9. a4 {[%clk 0:02:41]}  O-O {[%clk 0:02:56]} 10. Be2 {[%clk 0:02:40]}  Re8 {[%clk 0:02:50]} 11. Qc2 {[%clk 0:02:40]}  Qe7 {[%clk 0:02:46]} 12. Nd2 {[%clk 0:02:36]}  Nbd7 {[%clk 0:02:33]} 13. O-O {[%clk 0:02:26]}  Ne5 {[%clk 0:02:31]} 14. h3 {[%clk 0:02:24]}  Bd7 {[%clk 0:02:25]} 15. Bh2 {[%clk 0:02:17]}  g5 {[%clk 0:02:17]} 16. f4 {[%clk 0:02:12]}  gxf4 {[%clk 0:02:16]} 17. Bxf4 {[%clk 0:02:13]}  Ng6 {[%clk 0:02:00]} 18. Bg3 {[%clk 0:02:09]}  Ne5 {[%clk 0:01:32]} 19. Rf2 {[%clk 0:02:01]}  Bh6 {[%clk 0:01:27]} 20. Bf4 {[%clk 0:01:55]}  Bxf4 {[%clk 0:01:13]} 21. Rxf4 {[%clk 0:01:56]}  Ng6 {[%clk 0:01:14]} 22. Rf2 {[%clk 0:01:54]}  b5 {[%clk 0:00:45]} 23. axb5 {[%clk 0:01:53]}  axb5 {[%clk 0:00:44]} 24. Raf1 {[%clk 0:01:52]}  b4 {[%clk 0:00:43]} 25. Rxf6 {[%clk 0:01:51]}  bxc3 {[%clk 0:00:43]} 26. bxc3 {[%clk 0:01:52]}  Ne5 {[%clk 0:00:34]} 27. Bh5 {[%clk 0:01:49]}  Rf8 {[%clk 0:00:29]} 28. Qc1 {[%clk 0:01:21]}  Ng6 {[%clk 0:00:26]} 29. Qe1 {[%clk 0:01:16]}  Qe5 {[%clk 0:00:23]} 30. Bxg6 {[%clk 0:01:00]}  fxg6 {[%clk 0:00:20]} 31. Rxf8+ {[%clk 0:01:01]}  Rxf8 {[%clk 0:00:20]} 32. Rxf8+ {[%clk 0:01:02]}  Kxf8 {[%clk 0:00:21]} 33. Nc4 {[%clk 0:01:03]}  Qxc3 {[%clk 0:00:11]} 34. Qxc3 {[%clk 0:01:02]} 1-0


[Site "https://www.chess.com"]

[Event "Titled Tuesday Blitz November 01 Late 2022"]
[White "Budisavljevic, Luka"]
[Black "Voigt, Martin"]
[WhiteFideId "960047"]
[BlackFideId "4607228"]
[WhiteElo "2424"]
[BlackElo "2356"]
[Result "1-0"]
[Round "03"]
[TimeControl "180+1"]
[Date "2022.11.02"]
[WhiteClock "0:00:08"]
[BlackClock "0:00:01"]

1. c4 {[%clk 0:02:57]}  e5 {[%clk 0:02:59]} 2. Nc3 {[%clk 0:02:56]}  Nc6 {[%clk 0:02:58]} 3. e3 {[%clk 0:02:54]}  Nf6 {[%clk 0:02:56]} 4. Nf3 {[%clk 0:02:51]}  d5 {[%clk 0:02:49]} 5. cxd5 {[%clk 0:02:48]}  Nxd5 {[%clk 0:02:49]} 6. Bb5 {[%clk 0:02:42]}  Nxc3 {[%clk 0:02:47]} 7. bxc3 {[%clk 0:02:42]}  Bd6 {[%clk 0:02:47]} 8. d4 {[%clk 0:02:39]}  exd4 {[%clk 0:02:47]} 9. cxd4 {[%clk 0:02:40]}  O-O {[%clk 0:02:47]} 10. O-O {[%clk 0:02:34]}  Bg4 {[%clk 0:02:46]} 11. h3 {[%clk 0:02:33]}  Bh5 {[%clk 0:02:45]} 12. Bb2 {[%clk 0:02:29]}  Qf6 {[%clk 0:02:39]} 13. Rb1 {[%clk 0:02:07]}  Ne7 {[%clk 0:02:34]} 14. Be2 {[%clk 0:02:05]}  Bg6 {[%clk 0:02:24]} 15. Bd3 {[%clk 0:01:58]}  Qe6 {[%clk 0:02:12]} 16. Re1 {[%clk 0:01:52]}  Qxa2 {[%clk 0:02:09]} 17. e4 {[%clk 0:01:46]}  c6 {[%clk 0:01:59]} 18. Re2 {[%clk 0:01:40]}  Qa5 {[%clk 0:01:57]} 19. Bc4 {[%clk 0:01:22]}  b5 {[%clk 0:01:49]} 20. Bb3 {[%clk 0:01:20]}  Rfe8 {[%clk 0:01:44]} 21. Nh4 {[%clk 0:01:16]}  Rad8 {[%clk 0:01:31]} 22. d5 {[%clk 0:01:04]}  cxd5 {[%clk 0:01:27]} 23. Qd4 {[%clk 0:00:56]}  f6 {[%clk 0:01:18]} 24. Nxg6 {[%clk 0:00:54]}  Nxg6 {[%clk 0:01:14]} 25. Qxd5+ {[%clk 0:00:54]}  Kh8 {[%clk 0:01:14]} 26. g3 {[%clk 0:00:52]}  Bxg3 {[%clk 0:00:59]} 27. Qf5 {[%clk 0:00:48]}  Be5 {[%clk 0:00:58]} 28. Bf7 {[%clk 0:00:46]}  Nf4 {[%clk 0:00:35]} 29. Re3 {[%clk 0:00:40]}  Re7 {[%clk 0:00:26]} 30. Bxe5 {[%clk 0:00:32]}  Rxe5 {[%clk 0:00:26]} 31. Qxf4 {[%clk 0:00:30]}  Qd2 {[%clk 0:00:25]} 32. Bd5 {[%clk 0:00:26]}  b4 {[%clk 0:00:21]} 33. Rf3 {[%clk 0:00:22]}  Rg5+ {[%clk 0:00:18]} 34. Kh2 {[%clk 0:00:21]}  Qxf4+ {[%clk 0:00:16]} 35. Rxf4 {[%clk 0:00:22]}  a5 {[%clk 0:00:16]} 36. Rf3 {[%clk 0:00:19]}  h5 {[%clk 0:00:14]} 37. Rfb3 {[%clk 0:00:18]}  Rb8 {[%clk 0:00:12]} 38. Ra1 {[%clk 0:00:18]}  Rb5 {[%clk 0:00:11]} 39. f4 {[%clk 0:00:14]}  Rg6 {[%clk 0:00:10]} 40. Bf7 {[%clk 0:00:07]}  Rh6 {[%clk 0:00:10]} 41. f5 {[%clk 0:00:07]}  h4 {[%clk 0:00:07]} 42. Kg2 {[%clk 0:00:07]}  g5 {[%clk 0:00:06]} 43. fxg6 {[%clk 0:00:06]}  Kg7 {[%clk 0:00:06]} 44. Kf3 {[%clk 0:00:05]}  Rhh5 {[%clk 0:00:07]} 45. Kf4 {[%clk 0:00:05]}  Rhg5 {[%clk 0:00:06]} 46. Rd1 {[%clk 0:00:05]}  Rb7 {[%clk 0:00:04]} 47. Rd8 {[%clk 0:00:04]}  a4 {[%clk 0:00:03]} 48. Rbd3 {[%clk 0:00:04]}  a3 {[%clk 0:00:03]} 49. Rg8+ {[%clk 0:00:04]}  Kh6 {[%clk 0:00:03]} 50. Rh8+ {[%clk 0:00:05]}  Kg7 {[%clk 0:00:03]} 51. Rh7+ {[%clk 0:00:06]}  Kf8 {[%clk 0:00:03]} 52. Rd8+ {[%clk 0:00:06]}  Ke7 {[%clk 0:00:03]} 53. Rd5 {[%clk 0:00:06]}  Rb8 {[%clk 0:00:02]} 54. Rxg5 {[%clk 0:00:06]}  fxg5+ {[%clk 0:00:02]} 55. Kxg5 {[%clk 0:00:07]}  b3 {[%clk 0:00:01]} 56. Bxb3+ {[%clk 0:00:08]}  Kd6 {[%clk 0:00:01]} 57. Ba2 {[%clk 0:00:07]}  Ke5 {[%clk 0:00:02]} 58. Re7+ {[%clk 0:00:07]}  Kd6 {[%clk 0:00:02]} 59. Kf6 {[%clk 0:00:08]}  Rf8+ {[%clk 0:00:01]} 60. Rf7 {[%clk 0:00:08]} 1-0


[Site "https://www.chess.com"]

[Event "Titled Tuesday Blitz November 01 Late 2022"]
[White "Castella Garcia, Fausto"]
[Black "Coelho, Ramyres Santana"]
[WhiteFideId "3501922"]
[BlackFideId "2120690"]
[WhiteElo "2246"]
[BlackElo "1888"]
[Result "1-0"]
[Round "03"]
[TimeControl "180+1"]
[Date "2022.11.02"]
[WhiteClock "0:00:41"]
[BlackClock "0:00:04"]

1. e4 {[%clk 0:03:00]}  c5 {[%clk 0:02:57]} 2. Nf3 {[%clk 0:02:59]}  d6 {[%clk 0:02:57]} 3. d4 {[%clk 0:02:59]}  cxd4 {[%clk 0:02:58]} 4. Nxd4 {[%clk 0:02:59]}  Nf6 {[%clk 0:02:58]} 5. Nc3 {[%clk 0:03:00]}  a6 {[%clk 0:02:59]} 6. Bg5 {[%clk 0:02:58]}  e6 {[%clk 0:03:00]} 7. f4 {[%clk 0:02:58]}  Qb6 {[%clk 0:03:01]} 8. Qd2 {[%clk 0:02:58]}  Qxb2 {[%clk 0:03:00]} 9. Nb3 {[%clk 0:02:58]}  Be7 {[%clk 0:02:52]} 10. Bxf6 {[%clk 0:02:55]}  Bxf6 {[%clk 0:02:50]} 11. Na4 {[%clk 0:02:51]}  Qa3 {[%clk 0:02:42]} 12. Nb6 {[%clk 0:02:40]}  Bxa1 {[%clk 0:02:42]} 13. Nxa1 {[%clk 0:02:39]}  Qxa2 {[%clk 0:02:40]} 14. Nb3 {[%clk 0:02:35]}  Nd7 {[%clk 0:02:16]} 15. Nxa8 {[%clk 0:02:33]}  O-O {[%clk 0:02:14]} 16. Bd3 {[%clk 0:02:10]}  Nf6 {[%clk 0:01:22]} 17. Nb6 {[%clk 0:01:59]}  Qb1+ {[%clk 0:01:15]} 18. Qc1 {[%clk 0:01:59]}  Qa2 {[%clk 0:01:09]} 19. Nxc8 {[%clk 0:01:45]}  Rxc8 {[%clk 0:01:10]} 20. O-O {[%clk 0:01:44]}  d5 {[%clk 0:01:05]} 21. e5 {[%clk 0:01:42]}  Ng4 {[%clk 0:00:51]} 22. h3 {[%clk 0:01:34]}  Nh6 {[%clk 0:00:43]} 23. Qa1 {[%clk 0:01:31]}  Qxa1 {[%clk 0:00:37]} 24. Rxa1 {[%clk 0:01:28]}  Kh8 {[%clk 0:00:28]} 25. g4 {[%clk 0:01:25]}  Ng8 {[%clk 0:00:29]} 26. Nd4 {[%clk 0:01:13]}  Ne7 {[%clk 0:00:30]} 27. f5 {[%clk 0:01:13]}  Nc6 {[%clk 0:00:25]} 28. Nxc6 {[%clk 0:01:03]}  Rxc6 {[%clk 0:00:25]} 29. Kf2 {[%clk 0:01:02]}  g6 {[%clk 0:00:21]} 30. f6 {[%clk 0:01:00]}  h6 {[%clk 0:00:21]} 31. h4 {[%clk 0:00:58]}  Kh7 {[%clk 0:00:21]} 32. Ke3 {[%clk 0:00:58]}  Kh8 {[%clk 0:00:11]} 33. Kd4 {[%clk 0:00:57]}  Rb6 {[%clk 0:00:09]} 34. c3 {[%clk 0:00:53]}  Rb2 {[%clk 0:00:09]} 35. Rb1 {[%clk 0:00:53]}  Rxb1 {[%clk 0:00:09]} 36. Bxb1 {[%clk 0:00:53]}  Kg8 {[%clk 0:00:07]} 37. Kc5 {[%clk 0:00:53]}  g5 {[%clk 0:00:05]} 38. hxg5 {[%clk 0:00:50]}  hxg5 {[%clk 0:00:06]} 39. Kb6 {[%clk 0:00:48]}  a5 {[%clk 0:00:06]} 40. Kxb7 {[%clk 0:00:48]}  a4 {[%clk 0:00:06]} 41. Kc6 {[%clk 0:00:48]}  a3 {[%clk 0:00:07]} 42. Ba2 {[%clk 0:00:47]}  Kh7 {[%clk 0:00:07]} 43. Kd6 {[%clk 0:00:44]}  Kg6 {[%clk 0:00:06]} 44. Ke7 {[%clk 0:00:45]}  d4 {[%clk 0:00:01]} 45. cxd4 {[%clk 0:00:44]}  Kh6 {[%clk 0:00:01]} 46. Kxf7 {[%clk 0:00:44]}  Kh7 {[%clk 0:00:01]} 47. Kxe6 {[%clk 0:00:44]}  Kg6 {[%clk 0:00:02]} 48. f7 {[%clk 0:00:44]}  Kg7 {[%clk 0:00:03]} 49. Ke7 {[%clk 0:00:44]}  Kh7 {[%clk 0:00:03]} 50. f8=Q {[%clk 0:00:43]}  Kg6 {[%clk 0:00:02]} 51. Qf6+ {[%clk 0:00:41]}  Kh7 {[%clk 0:00:03]} 52. Qxg5 {[%clk 0:00:40]}  Kh8 {[%clk 0:00:03]} 53. Kf6 {[%clk 0:00:41]}  Kh7 {[%clk 0:00:04]} 54. Qg7# {[%clk 0:00:41]} 1-0


[Site "https://www.chess.com"]